bitfinex-derivatives/quotes_BTCF0:USTF0_20241210
["timestamp","ask_amount","ask_price","bid_price","bid_amount"]
[1733821144660,0.21625215,97413.0,97412.0,0.00105342]
[1733821145553,0.16636265,97413.0,97412.0,0.04596056]
[1733821145759,0.16636265,97413.0,97412.0,0.00105342]
[1733821146056,0.16805194,97413.0,97412.0,0.00105342]
[1733821148564,0.16805194,97413.0,97412.0,0.04596037]
[1733821149860,0.16805194,97413.0,97412.0,0.00105342]
[1733821150658,0.16805194,97413.0,97412.0,0.04596059]
[1733821151376,0.07136265,97413.0,97412.0,0.04596059]
[1733821151666,0.07136265,97413.0,97412.0,0.04595896]
[1733821151968,0.07136265,97413.0,97412.0,0.00105342]
[1733821157373,0.12125353,97413.0,97412.0,0.00105342]
[1733821157670,0.30587472,97413.0,97412.0,0.00105342]
[1733821157868,0.12125353,97413.0,97412.0,0.00105342]
[1733821159367,0.07136265,97413.0,97412.0,0.00105342]
[1733821159564,0.12125353,97413.0,97412.0,0.00105342]
[1733821161173,0.30583481,97413.0,97412.0,0.00105342]
[1733821161368,0.12125353,97413.0,97412.0,0.00105342]
[1733821168182,0.12125566,97413.0,97412.0,0.00105342]
[1733821168574,0.30583694,97413.0,97412.0,0.00105342]
[1733821169176,0.12125566,97413.0,97412.0,0.00105342]
[1733821169482,0.25593929,97413.0,97412.0,0.00105342]
[1733821169680,0.12125566,97413.0,97412.0,0.00105342]
[1733821170384,0.2559393,97413.0,97412.0,0.00105342]
[1733821170583,0.12125566,97413.0,97412.0,0.00105342]
[1733821174379,0.12125566,97413.0,97400.0,0.1]
[1733821174380,0.051311,97401.0,97400.0,0.1]
[1733821174581,0.46200401,97401.0,97400.0,0.1]
[1733821175580,0.46200401,97401.0,97400.0,0.102]
[1733821175781,0.46300401,97401.0,97400.0,0.108]
[1733821176183,0.413111,97401.0,97400.0,0.108]
[1733821176381,0.56687825,97401.0,97400.0,0.108]
[1733821176688,0.413111,97401.0,97400.0,0.108]
[1733821177292,0.56686165,97401.0,97400.0,0.108]
[1733821179992,0.57734101,97401.0,97400.0,0.108]
[1733821183790,0.42359036,97401.0,97400.0,0.108]
[1733821184495,0.47348773,97401.0,97400.0,0.108]
[1733821186483,0.11268773,97401.0,97400.0,0.108]
[1733821186695,0.47348773,97401.0,97400.0,0.108]
[1733821186995,0.47348906,97401.0,97400.0,0.108]
[1733821189796,0.11268906,97401.0,97400.0,0.108]
[1733821189991,0.47348906,97401.0,97400.0,0.108]
[1733821190792,0.06137806,97401.0,97400.0,0.108]
[1733821190988,0.01147936,97401.0,97400.0,0.20422123]
[1733821191786,0.10370953,97401.0,97400.0,0.20422123]
[1733821192091,0.01147936,97401.0,97400.0,0.20422123]
[1733821193105,0.06279036,97401.0,97400.0,0.20422123]
[1733821194191,0.18577751,97401.0,97400.0,0.20422123]
[1733821195000,0.06279036,97401.0,97400.0,0.20422123]
[1733821195495,0.18577751,97401.0,97400.0,0.20422123]
[1733821196702,0.06279036,97401.0,97400.0,0.34243618]
[1733821199107,0.06279036,97401.0,97400.0,0.34564403]
[1733821199702,0.06279036,97401.0,97400.0,0.29433303]
[1733821199907,0.06279036,97401.0,97400.0,0.108]
[1733821202612,0.01147936,97401.0,97400.0,0.108]
[1733821202808,0.13449491,97401.0,97400.0,0.29111545]
[1733821203400,0.001,97401.0,97400.0,0.29111545]
[1733821203708,0.001,97401.0,97400.0,0.15290957]
[1733821204007,0.09326028,97401.0,97400.0,0.15290957]
[1733821204600,0.001,97401.0,97400.0,0.15290957]
[1733821204795,0.001,97401.0,97400.0,0.3970635]
[1733821205011,0.001,97401.0,97400.0,0.15290957]
[1733821205400,0.24603712,97441.0,97400.0,0.15290957]
[1733821205401,0.1537732,97420.0,97411.0,0.051305]
[1733821205603,0.18504785,97421.0,97411.0,0.051305]
[1733821205604,0.03952784,97421.0,97419.0,0.412101]
[1733821205906,0.00052001,97438.0,97437.0,0.051292]
[1733821206306,0.01038212,97440.0,97439.0,0.051291]
[1733821206611,0.051291,97438.0,97437.0,4e-05]
[1733821206914,0.051371,97438.0,97437.0,4e-05]
[1733821208104,0.051371,97438.0,97415.0,0.30519242]
[1733821208105,0.051299,97423.0,97421.0,0.18295392]
[1733821208412,0.0513,97421.0,97418.0,0.051302]
[1733821208598,0.09328,97422.0,97419.0,0.04490108]
[1733821208804,0.0513,97421.0,97420.0,0.0160361]
[1733821209104,0.0513,97421.0,97420.0,0.06093718]
[1733821209405,0.0513,97421.0,97420.0,0.04490108]
[1733821210205,0.0543,97421.0,97418.0,0.051302]
[1733821210408,0.0563,97421.0,97418.0,0.051302]
[1733821210606,0.051301,97420.0,97418.0,0.051302]
[1733821213002,0.051301,97420.0,97419.0,0.0032073]
[1733821213203,0.002,97420.0,97419.0,0.0032073]
[1733821214006,0.005,97420.0,97419.0,0.0032073]
[1733821214418,0.005,97420.0,97418.0,0.051302]
[1733821214606,0.005,97420.0,97419.0,0.00320728]
[1733821215606,0.005,97420.0,97419.0,0.04810756]
[1733821216212,0.005,97420.0,97419.0,0.00320728]
[1733821216517,0.0453,97442.0,97439.0,0.051291]
[1733821216710,0.06115611,97440.0,97439.0,0.05449828]
[1733821218007,0.07015611,97440.0,97439.0,0.05549828]
[1733821219023,0.07615611,97440.0,97439.0,0.05649828]
[1733821221213,0.07615611,97440.0,97439.0,0.0564977]
[1733821224515,0.07615611,97440.0,97439.0,0.053291]
[1733821224721,0.07615611,97440.0,97439.0,0.05649767]
[1733821224722,0.015,97440.0,97439.0,0.05649767]
[1733821225219,0.015,97440.0,97439.0,0.23896368]
[1733821225419,0.015,97440.0,97439.0,0.05649767]
[1733821225828,0.015,97440.0,97439.0,0.10138439]
[1733821226121,0.015,97440.0,97439.0,0.05649767]
[1733821226518,0.006,97440.0,97439.0,0.28664102]
[1733821226910,0.0453,97442.0,97439.0,0.23435002]
[1733821227116,0.0453,97442.0,97441.0,0.05129]
[1733821227421,0.0453,97442.0,97441.0,0.05453667]
[1733821228321,0.0453,97442.0,97441.0,0.05753667]
[1733821229615,0.0453,97442.0,97441.0,0.10242361]
[1733821229815,0.0453,97442.0,97441.0,0.10342361]
[1733821230816,0.0916,97448.0,97447.0,0.051286]
[1733821231023,0.0916,97448.0,97447.0,0.05449267]
[1733821231024,0.0456,97448.0,97447.0,0.05449267]
[1733821231323,0.0445,97455.0,97453.0,0.051283]
[1733821231515,0.04108,97454.0,97453.0,0.051283]
[1733821231714,0.04108,97454.0,97453.0,0.05448914]
[1733821232918,0.04308,97454.0,97453.0,0.05448914]
[1733821233114,0.04308,97454.0,97453.0,0.051283]
[1733821233922,0.04508,97454.0,97453.0,0.051283]
[1733821235317,0.096363,97454.0,97453.0,0.051283]
[1733821236227,0.096363,97454.0,97453.0,0.00320616]
[1733821236620,0.457163,97454.0,97439.0,0.051291]
[1733821236920,0.1011498,97450.0,97439.0,0.051291]
[1733821237125,0.051289,97442.0,97439.0,0.051291]
[1733821237325,0.0468,97441.0,97439.0,0.051291]
[1733821237717,0.0468,97441.0,97440.0,0.04488922]
[1733821238923,0.0468,97441.0,97439.0,0.055291]
[1733821239322,8e-05,97440.0,97439.0,0.055291]
[1733821239727,8e-05,97440.0,97439.0,0.053291]
[1733821239927,8e-05,97440.0,97439.0,0.057291]
[1733821240128,8e-05,97440.0,97439.0,0.10218111]
[1733821240525,8e-05,97440.0,97439.0,0.10018111]
[1733821240720,8e-05,97440.0,97439.0,0.28443782]
[1733821240925,8e-05,97440.0,97439.0,0.28043782]
[1733821241122,8e-05,97440.0,97439.0,0.28443782]
[1733821241724,8e-05,97440.0,97439.0,0.10218111]
[1733821242127,8e-05,97440.0,97439.0,0.28443782]
[1733821242527,8e-05,97440.0,97439.0,0.10218111]
[1733821243130,0.04698,97440.0,97439.0,0.10218111]
[1733821243329,0.04698,97440.0,97439.0,0.28472539]
[1733821243532,0.04698,97440.0,97439.0,0.10218111]
[1733821245942,0.04698,97440.0,97439.0,0.34580133]
[1733821246135,0.04698,97440.0,97439.0,0.10218111]
[1733821253542,0.04698,97440.0,97439.0,0.46298111]
[1733821254542,0.04698,97440.0,97439.0,0.76817353]
[1733821255544,0.04698,97440.0,97439.0,0.46298111]
[1733821256349,0.04698,97440.0,97439.0,0.76817353]
[1733821256944,0.04698,97440.0,97439.0,0.46298111]
[1733821257248,0.04698,97440.0,97439.0,0.76817353]
[1733821258043,0.04698,97440.0,97439.0,1.06177275]
[1733821258347,0.04698,97440.0,97439.0,0.75658033]
[1733821259145,8e-05,97440.0,97439.0,0.75658033]
[1733821261351,8e-05,97440.0,97439.0,0.75650786]
[1733821262454,8e-05,97440.0,97439.0,1.12209919]
[1733821262659,0.04116,97440.0,97439.0,1.12211846]
[1733821262854,0.04116,97440.0,97439.0,0.75650786]
[1733821263056,0.12826,97440.0,97439.0,0.75650786]
[1733821263359,0.12826,97440.0,97439.0,0.46298111]
[1733821264147,0.12826,97440.0,97439.0,0.46198111]
[1733821264349,0.12826,97440.0,97439.0,0.417091]
[1733821264350,0.08476,97440.0,97439.0,0.417091]
[1733821264559,0.08476,97440.0,97439.0,1.1241921]
[1733821264560,8e-05,97440.0,97439.0,1.1241921]
[1733821264758,8e-05,97440.0,97439.0,0.7585815]
[1733821265455,0.0871,97455.0,97452.0,0.051284]
[1733821265665,0.0871,97455.0,97452.0,0.75298044]
[1733821265849,0.08748,97453.0,97452.0,0.45697411]
[1733821266246,0.08748,97453.0,97452.0,0.412084]
[1733821266653,0.08748,97453.0,97452.0,0.45696509]
[1733821267060,0.04208,97453.0,97452.0,0.76146633]
[1733821267254,0.003,97453.0,97452.0,0.45696509]
[1733821267563,0.003,97453.0,97452.0,0.75292887]
[1733821268753,0.003,97453.0,97452.0,0.76319372]
[1733821269264,0.003,97453.0,97452.0,1.12867461]
[1733821269455,0.003,97453.0,97452.0,0.76639933]
[1733821269655,0.0418,97468.0,97452.0,1.16081533]
[1733821269861,0.0418,97468.0,97467.0,0.051276]
[1733821270064,0.0418,97468.0,97467.0,0.76419815]
[1733821270254,0.08288,97468.0,97467.0,0.71931706]
[1733821270460,0.04108,97468.0,97467.0,0.41528161]
[1733821270655,0.04108,97468.0,97467.0,0.4601627]
[1733821270856,0.04108,97468.0,97467.0,0.46024749]
[1733821271058,0.04108,97468.0,97467.0,0.75579026]
[1733821271461,0.04108,97468.0,97467.0,0.46024749]
[1733821272763,0.04108,97468.0,97467.0,0.6518497]
[1733821272957,0.04108,97468.0,97467.0,0.64864409]
[1733821273256,0.04908,97468.0,97467.0,0.40997111]
[1733821273854,0.04108,97468.0,97467.0,0.40897111]
[1733821274061,0.04508,97468.0,97467.0,0.40897111]
[1733821274259,0.04708,97468.0,97467.0,0.40897111]
[1733821276265,0.09218,97468.0,97467.0,0.40897111]
[1733821276572,0.04708,97468.0,97467.0,0.40897111]
[1733821278070,0.04708,97468.0,97467.0,0.36409002]
[1733821278471,0.04708,97468.0,97467.0,0.40896651]
[1733821278971,0.04708,97468.0,97467.0,0.40576128]
[1733821279164,0.04708,97468.0,97467.0,0.36088479]
[1733821279968,0.04708,97468.0,97467.0,0.36409022]
[1733821280164,0.04708,97468.0,97467.0,0.40896629]
[1733821280562,0.04708,97468.0,97467.0,0.59111829]
[1733821280764,0.04708,97468.0,97467.0,0.54624223]
[1733821280965,0.04708,97468.0,97467.0,0.18544223]
[1733821283977,0.04708,97468.0,97467.0,8.479e-05]
[1733821284576,0.04708,97468.0,97467.0,0.22706038]
[1733821284770,0.04708,97468.0,97467.0,8.479e-05]
[1733821285374,0.04708,97468.0,97467.0,0.04487624]
[1733821285578,0.05128,97460.0,97459.0,0.24287821]
[1733821285781,0.05128,97460.0,97455.0,0.66452653]
[1733821285782,0.051282,97456.0,97455.0,0.00076]
[1733821285965,0.051282,97456.0,97455.0,4e-05]
[1733821286672,0.12297771,97456.0,97433.0,0.34464]
[1733821286877,0.051293,97434.0,97433.0,0.34464]
[1733821287074,0.051373,97434.0,97433.0,0.34464]
[1733821287775,0.051373,97434.0,97421.0,0.0513]
[1733821287776,0.051297,97427.0,97421.0,0.0513]
[1733821288079,0.051297,97427.0,97424.0,0.051298]
[1733821288978,0.01146501,97434.0,97429.0,0.051295]
[1733821289184,0.001,97434.0,97429.0,0.051295]
[1733821289387,0.001,97434.0,97433.0,4e-05]
[1733821290598,0.051293,97435.0,97433.0,4e-05]
[1733821290988,0.051293,97435.0,97434.0,4e-05]
[1733821292587,0.09601865,97437.0,97434.0,0.00404]
[1733821292794,0.01011865,97437.0,97434.0,0.00404]
[1733821292992,0.05129,97441.0,97434.0,0.00604]
[1733821293299,0.0423,97445.0,97440.0,4e-05]
[1733821293494,0.412087,97446.0,97443.0,0.051288]
[1733821293690,0.3608,97446.0,97443.0,0.051288]
[1733821293899,0.3608,97446.0,97445.0,4e-05]
[1733821294997,0.38083714,97446.0,97445.0,4e-05]
[1733821295387,0.02103714,97446.0,97445.0,4e-05]
[1733821296393,0.02203714,97446.0,97445.0,4e-05]
[1733821298407,0.07332414,97446.0,97445.0,4e-05]
[1733821307614,0.053287,97446.0,97445.0,4e-05]
[1733821314321,0.053287,97446.0,97440.0,4e-05]
[1733821314322,0.05129,97441.0,97440.0,4e-05]
[1733821314513,0.41209,97441.0,97440.0,4e-05]
[1733821315516,0.41209,97441.0,97440.0,0.00104]
[1733821316118,0.56520955,97441.0,97440.0,0.00104]
[1733821316323,0.41209,97441.0,97440.0,0.00104]
[1733821316521,0.56520955,97441.0,97440.0,0.00104]
[1733821317821,0.41209,97441.0,97440.0,0.00104]
[1733821319418,0.56520955,97441.0,97440.0,0.00104]
[1733821320127,0.41209,97441.0,97440.0,0.00104]
[1733821320428,0.42258133,97441.0,97440.0,0.00104]
[1733821320630,0.47246169,97441.0,97440.0,0.00104]
[1733821321122,0.57619721,97441.0,97440.0,0.00104]
[1733821321530,0.42258133,97441.0,97440.0,0.00104]
[1733821324223,0.42258133,97441.0,97440.0,1e-08]
[1733821324626,0.47246279,97441.0,97440.0,1e-08]
[1733821324828,0.051291,97439.0,97438.0,0.08451994]
[1733821325022,0.051301,97419.0,97415.0,0.0421]
[1733821325217,0.051301,97419.0,97418.0,0.08910224]
[1733821325623,0.051301,97419.0,97418.0,0.04490224]
[1733821325822,0.051307,97407.0,97406.0,0.0836]
[1733821326025,0.051307,97407.0,97406.0,0.12850556]
[1733821326332,0.051387,97407.0,97406.0,0.12850556]
[1733821327028,0.052387,97407.0,97406.0,0.13650556]
[1733821327324,0.053387,97407.0,97406.0,0.14550556]
[1733821327728,0.414187,97407.0,97406.0,0.017]
[1733821328629,0.053387,97407.0,97406.0,0.017]
[1733821328831,0.06385081,97407.0,97406.0,0.017]
[1733821329226,0.06285081,97407.0,97406.0,0.009]
[1733821329420,0.06285081,97407.0,97406.0,0.007]
[1733821329620,0.09206937,97411.0,97406.0,0.06090757]
[1733821329821,0.00012954,97419.0,97417.0,0.051302]
[1733821330028,0.15360295,97424.0,97418.0,0.40570757]
[1733821330233,0.15360295,97424.0,97423.0,0.051299]
[1733821330432,0.15360295,97434.0,97423.0,0.09624657]
[1733821330631,0.3608,97436.0,97424.0,0.04490757]
[1733821330835,0.051293,97435.0,97433.0,4e-05]
[1733821331129,0.051293,97435.0,97434.0,7.417e-05]
[1733821333240,0.01045764,97436.0,97435.0,0.051293]
[1733821333425,0.0001791,97439.0,97438.0,0.051291]
[1733821333631,0.0001791,97439.0,97438.0,0.412091]
[1733821333831,0.15360295,97451.0,97450.0,0.051285]
[1733821334346,0.15360295,97451.0,97450.0,0.051325]
[1733821334730,0.16407247,97451.0,97450.0,0.051325]
[1733821335442,0.15360295,97451.0,97450.0,0.051325]
[1733821336839,0.008,97451.0,97450.0,0.051325]
[1733821339445,0.008,97451.0,97450.0,4e-05]
[1733821343845,0.008,97451.0,97450.0,0.051325]
[1733821349147,9.623e-05,97457.0,97456.0,0.051282]
[1733821349352,9.623e-05,97457.0,97456.0,0.412082]
[1733821349535,9.623e-05,97457.0,97456.0,0.412122]
[1733821350449,0.00709623,97457.0,97456.0,0.413122]
[1733821351141,0.01109623,97457.0,97456.0,0.413122]
[1733821351337,0.01109623,97457.0,97456.0,0.45800029]
[1733821351537,0.01109623,97457.0,97456.0,0.45800002]
[1733821352247,0.01109623,97457.0,97456.0,0.413122]
[1733821352844,0.01109623,97457.0,97456.0,0.45800002]
[1733821353350,0.01109623,97457.0,97456.0,0.413122]
[1733821354947,0.01109623,97457.0,97456.0,0.00104]
[1733821355356,0.07439623,97457.0,97456.0,0.00104]
[1733821357250,0.08486341,97457.0,97456.0,0.00104]
[1733821358558,0.08486341,97457.0,97456.0,0.00653]
[1733821359458,0.07439623,97457.0,97456.0,0.05141271]
[1733821359653,0.04249623,97457.0,97456.0,0.05141271]
[1733821359848,0.01109623,97457.0,97456.0,0.05140972]
[1733821361770,0.01109623,97457.0,97456.0,0.0546154]
[1733821362166,0.01109623,97457.0,97456.0,0.29731926]
[1733821362372,0.01109623,97457.0,97456.0,0.0546154]
[1733821362857,0.01109623,97457.0,97456.0,0.0546153]
[1733821363264,0.0939,97475.0,97456.0,0.0546153]
[1733821363265,0.0939,97475.0,97456.0,0.43618327]
[1733821363565,0.0939,97475.0,97474.0,4e-05]
[1733821363870,0.0939,97475.0,97474.0,0.0481253]
[1733821364673,0.0939,97475.0,97474.0,0.04491972]
[1733821364674,0.11122514,97475.0,97474.0,0.04491972]
[1733821364864,0.11122514,97475.0,97474.0,0.00324528]
[1733821365359,0.11322514,97475.0,97474.0,0.00424528]
[1733821366067,0.11622514,97475.0,97474.0,0.04911957]
[1733821366871,0.11622514,97475.0,97474.0,0.00424528]
[1733821367372,0.11422514,97475.0,97474.0,0.00424528]
[1733821369884,0.08282514,97475.0,97474.0,0.00424528]
[1733821370084,0.05192514,97475.0,97474.0,0.00424528]
[1733821371167,0.05192514,97475.0,97474.0,0.00104]
[1733821371973,0.05192514,97475.0,97474.0,0.04591428]
[1733821373177,0.05192514,97475.0,97474.0,0.00104]
[1733821373876,0.05192514,97475.0,97474.0,0.052312]
[1733821375086,0.05192514,97475.0,97474.0,0.00104]
[1733821375878,0.051276,97466.0,97465.0,0.24322518]
[1733821376177,0.051356,97466.0,97464.0,0.3608]
[1733821376387,0.0634,97465.0,97464.0,0.3608]
[1733821377084,0.06348,97465.0,97464.0,0.3608]
[1733821377482,0.06448,97465.0,97464.0,0.3608]
[1733821378482,0.06548,97465.0,97464.0,0.3608]
[1733821379379,0.06548,97465.0,97464.0,0.40567428]
[1733821380180,0.07583,97465.0,97464.0,0.40567428]
[1733821381183,0.07583,97465.0,97464.0,0.04487428]
[1733821382086,0.07583,97465.0,97464.0,0.05041428]
[1733821382590,0.07583,97465.0,97464.0,0.00554]
[1733821386083,0.00208,97465.0,97464.0,0.00554]
[1733821386286,0.00208,97465.0,97464.0,0.25197081]
[1733821386589,0.00208,97465.0,97464.0,0.00874563]
[1733821386891,0.00208,97465.0,97464.0,0.05362466]
[1733821387700,0.02130077,97468.0,97464.0,0.06965177]
[1733821387878,0.02130077,97468.0,97465.0,0.06411177]
[1733821388082,0.02130077,97468.0,97467.0,4e-05]
[1733821388294,0.02130077,97468.0,97467.0,0.06415177]
[1733821388893,0.02230077,97468.0,97467.0,0.06415177]
[1733821389094,0.02330077,97468.0,97467.0,0.06415177]
[1733821389302,0.02330077,97468.0,97467.0,0.01927274]
[1733821389892,0.02230077,97468.0,97467.0,0.00324563]
[1733821390082,0.14623837,97468.0,97467.0,0.00324563]
[1733821390695,0.14723837,97468.0,97467.0,0.00324563]
[1733821391101,0.02430077,97468.0,97467.0,0.00324563]
[1733821391298,0.02430077,97468.0,97467.0,4e-05]
[1733821391887,0.051281,97457.0,97455.0,0.23841329]
[1733821392098,0.0631,97456.0,97455.0,0.23841329]
[1733821392290,0.0631,97456.0,97451.0,0.3039781]
[1733821392291,0.051284,97452.0,97451.0,0.3039781]
[1733821392482,0.051284,97452.0,97451.0,0.04488637]
[1733821392686,0.051364,97452.0,97451.0,0.04488637]
[1733821394083,8e-05,97452.0,97451.0,0.04988761]
[1733821394287,8e-05,97452.0,97451.0,0.005]
[1733821394686,0.051364,97452.0,97451.0,0.04988763]
[1733821395292,0.06164618,97452.0,97451.0,0.04588763]
[1733821395490,0.06164618,97452.0,97451.0,0.04788763]
[1733821396302,0.06164618,97452.0,97451.0,0.04588763]
[1733821396596,0.06164618,97452.0,97451.0,0.001]
[1733821396896,0.06164618,97452.0,97444.0,0.3608]
[1733821397094,0.06164618,97452.0,97437.0,0.3608]
[1733821397095,0.051291,97438.0,97437.0,0.3608]
[1733821397597,0.051371,97438.0,97437.0,0.4056911]
[1733821397993,0.051371,97438.0,97437.0,0.3608]
[1733821398393,0.051371,97438.0,97437.0,0.3638]
[1733821398596,0.051297,97427.0,97426.0,0.04489288]
[1733821398895,0.051297,97427.0,97423.0,0.3608]
[1733821398896,0.051299,97424.0,97423.0,0.3608]
[1733821399090,0.051299,97424.0,97423.0,0.40569991]
[1733821399291,0.051299,97424.0,97423.0,0.3608]
[1733821399700,0.051299,97424.0,97423.0,0.36091112]
[1733821399900,0.051379,97424.0,97423.0,0.36091112]
[1733821400785,0.0617837,97424.0,97423.0,0.36091112]
[1733821400991,0.0627837,97424.0,97423.0,0.36891112]
[1733821401200,0.00108,97424.0,97423.0,0.36891112]
[1733821401695,0.00108,97424.0,97423.0,0.41381097]
[1733821401903,0.00108,97424.0,97423.0,0.41781097]
[1733821402200,0.00108,97424.0,97423.0,0.37291112]
[1733821405403,0.00108,97424.0,97423.0,0.42101381]
[1733821405598,0.00108,97424.0,97423.0,0.45351381]
[1733821406695,0.05129,97441.0,97423.0,0.45351381]
[1733821407002,0.0304,97450.0,97444.0,0.051288]
[1733821407213,0.051289,97443.0,97440.0,0.36084]
[1733821407504,0.051289,97443.0,97441.0,0.00320628]
[1733821407689,0.051289,97443.0,97442.0,0.00320628]
[1733821409399,0.051292,97437.0,97431.0,0.051294]
[1733821409602,0.02063799,97445.0,97431.0,0.051294]
[1733821409603,0.051293,97435.0,97431.0,0.051294]
[1733821410006,0.051294,97434.0,97431.0,0.051294]
[1733821410900,0.10105534,97441.0,97428.0,0.18242293]
[1733821411106,0.10105534,97441.0,97423.0,0.39741112]
[1733821411107,0.051296,97428.0,97424.0,0.051298]
[1733821411500,0.051297,97427.0,97424.0,0.051298]
[1733821411701,8e-05,97429.0,97424.0,0.051298]
[1733821412003,8e-05,97429.0,97425.0,0.04489591]
[1733821412004,0.051298,97426.0,97425.0,0.04489591]
[1733821413502,0.051298,97426.0,97425.0,0.05189591]
[1733821414494,0.051298,97426.0,97425.0,0.007]
[1733821415003,0.051298,97426.0,97425.0,0.011]
[1733821416703,0.06149886,97426.0,97425.0,0.011]
[1733821416905,0.051298,97426.0,97425.0,0.011]
[1733821417206,0.051298,97426.0,97425.0,0.19342293]
[1733821417412,0.051298,97426.0,97425.0,0.19662975]
[1733821417712,0.051298,97426.0,97425.0,0.05910273]
[1733821418016,0.051298,97426.0,97425.0,0.19662975]
[1733821418314,0.051298,97426.0,97425.0,0.01420682]
[1733821418703,0.051298,97426.0,97425.0,0.011]
[1733821418905,0.051298,97426.0,97425.0,0.01420681]
[1733821420712,0.01033475,97429.0,97425.0,0.01420681]
[1733821420713,0.01033475,97429.0,97427.0,0.051297]
[1733821420908,0.01033475,97429.0,97428.0,0.00320681]
[1733821422011,8e-05,97429.0,97428.0,0.00320681]
[1733821422214,8e-05,97429.0,97428.0,0.04809978]
[1733821423006,8e-05,97429.0,97428.0,0.04809961]
[1733821423309,8e-05,97429.0,97428.0,0.05409961]
[1733821423506,8e-05,97429.0,97428.0,0.05089297]
[1733821423908,0.06298,97429.0,97428.0,0.23401634]
[1733821424108,0.06298,97429.0,97428.0,0.05089297]
[1733821424410,0.06298,97429.0,97428.0,0.05389297]
[1733821427218,0.18585698,97429.0,97428.0,0.05389297]
[1733821428305,0.06298,97429.0,97428.0,0.05389297]
[1733821428811,0.06298,97429.0,97423.0,0.00011112]
[1733821429018,0.412099,97424.0,97423.0,0.00011112]
[1733821429218,0.412179,97424.0,97423.0,0.00011112]
[1733821429711,0.412179,97424.0,97423.0,0.04501535]
[1733821430120,0.412179,97424.0,97423.0,0.05301535]
[1733821430815,0.412179,97424.0,97423.0,0.05701535]
[1733821431116,0.42262436,97424.0,97423.0,0.05701535]
[1733821431519,0.42262436,97424.0,97423.0,0.05301535]
[1733821431816,0.42262436,97424.0,97423.0,0.05701535]
[1733821432930,0.42262436,97424.0,97423.0,0.01211112]
[1733821434515,0.42262436,97424.0,97423.0,0.05701415]
[1733821437916,0.051303,97416.0,97415.0,0.16961674]
[1733821438116,0.3608,97416.0,97407.0,0.00068]
[1733821438312,0.3608,97416.0,97400.0,0.1]
[1733821438313,0.05131,97402.0,97400.0,0.1]
[1733821438822,8e-05,97401.0,97400.0,0.1]
[1733821439320,8e-05,97401.0,97400.0,0.10012898]
[1733821440426,8e-05,97401.0,97400.0,0.10412898]
[1733821441422,8e-05,97401.0,97400.0,0.10612898]
[1733821442324,0.01059408,97401.0,97400.0,0.10612898]
[1733821448034,0.01059408,97401.0,97400.0,0.15103778]
[1733821449835,0.01059408,97401.0,97400.0,0.10612898]
[1733821450134,0.07389408,97401.0,97400.0,0.10612898]
[1733821451438,0.07389408,97401.0,97378.0,0.37554]
[1733821451439,0.051322,97380.0,97378.0,0.65016811]
[1733821451630,0.051322,97380.0,97379.0,0.40571767]
[1733821451828,0.051402,97380.0,97379.0,0.40571767]
[1733821452224,0.051402,97380.0,97379.0,0.04491767]
[1733821453332,0.052402,97380.0,97379.0,0.005]
[1733821453640,0.052402,97380.0,97379.0,0.04992122]
[1733821453932,0.052402,97380.0,97379.0,0.05592122]
[1733821453933,0.42435163,97380.0,97379.0,0.05592122]
[1733821454134,0.051331,97362.0,97361.0,0.00064]
[1733821454540,0.051411,97362.0,97361.0,0.04563286]
[1733821455332,0.051411,97362.0,97361.0,0.00070565]
[1733821455735,0.051411,97362.0,97361.0,0.04563481]
[1733821456034,8e-05,97362.0,97361.0,0.04563481]
[1733821456239,8e-05,97362.0,97361.0,0.00070565]
[1733821456426,0.00108,97362.0,97361.0,0.04563481]
[1733821456832,0.052411,97362.0,97361.0,0.00070565]
[1733821457346,0.051411,97362.0,97361.0,0.00070565]
[1733821457633,0.052411,97362.0,97361.0,0.00070565]
[1733821457834,0.053411,97362.0,97361.0,0.00070565]
[1733821459336,0.00208,97362.0,97361.0,0.00070565]
[1733821463031,0.00208,97362.0,97361.0,0.10782965]
[1733821464635,0.00208,97362.0,97361.0,0.07722965]
[1733821464834,0.00208,97362.0,97361.0,0.03230565]
[1733821465932,0.00208,97362.0,97361.0,0.00070565]
[1733821466340,0.01226684,97362.0,97361.0,0.00070565]
[1733821466535,0.04336684,97362.0,97361.0,0.00070565]
[1733821468737,0.04336684,97362.0,97361.0,6.565e-05]
[1733821472942,0.01226684,97362.0,97361.0,0.36086565]
[1733821473946,0.01226684,97362.0,97361.0,0.4057917]
[1733821476043,0.01226684,97362.0,97361.0,0.36086565]
[1733821477351,0.00208,97362.0,97361.0,0.36086565]
[1733821478340,0.00208,97362.0,97361.0,0.4057917]
[1733821478843,0.00208,97362.0,97361.0,0.4090005]
[1733821479841,0.00208,97362.0,97361.0,0.4057917]
[1733821480348,0.00208,97362.0,97361.0,0.69489788]
[1733821480838,0.00208,97362.0,97361.0,0.99890828]
[1733821481236,0.09187939,97381.0,97361.0,0.99489788]
[1733821481445,0.09187939,97381.0,97380.0,0.3608]
[1733821481639,0.09187939,97390.0,97388.0,0.051318]
[1733821481835,0.09187939,97390.0,97388.0,0.09624405]
[1733821482040,0.09039713,97391.0,97388.0,0.06096718]
[1733821482349,0.0322,97396.0,97395.0,0.051314]
[1733821482535,0.0322,97396.0,97395.0,0.11227031]
[1733821482844,0.14292658,97401.0,97399.0,0.051312]
[1733821482845,0.02042072,97401.0,97399.0,0.051312]
[1733821483146,0.02042072,97401.0,97400.0,0.36084]
[1733821484551,0.02142072,97401.0,97400.0,0.36084]
[1733821484949,0.002,97401.0,97400.0,0.36084]
[1733821487652,0.002,97401.0,97400.0,0.36404722]
[1733821488239,0.002,97401.0,97400.0,0.40894842]
[1733821488643,0.002,97401.0,97400.0,0.36404722]
[1733821489538,0.002,97401.0,97400.0,0.36084]
[1733821489740,0.002,97401.0,97400.0,0.40894857]
[1733821489938,0.002,97401.0,97400.0,0.36404737]
[1733821492547,0.002,97401.0,97400.0,0.36084]
[1733821492756,0.002,97401.0,97400.0,0.4057412]
[1733821493247,0.002,97401.0,97400.0,0.36084]
[1733821497542,0.0335,97401.0,97400.0,0.36084]
[1733821499143,0.04352991,97401.0,97400.0,0.36084]
[1733821503062,0.04352991,97401.0,97400.0,4e-05]